[Event "ESP-chT Primera Division 2019"]
[Site "Linares"]
[Date "2019.08.31"]
[Round "6.10"]
[White "Cramling, Pia"]
[Black "Arizmendi Martinez, Julen Luis"]
[Result "1/2-1/2"]
[ECO "D38"]
[WhiteElo "2493"]
[BlackElo "2512"]
[Annotator "ChessBase"]
[PlyCount "76"]
[EventDate "2019.08.26"]
[EventType "team-tourn"]
[EventCountry "ESP"]
[SourceTitle "playchess.com"]
[Source "ChessBase"]
[SourceQuality "1"]
[TimeControl "5400+30"]

1. Nf3 {[%emt 0:00:00]} d5 {[%emt 0:02:02]} 2. d4 {[%emt 0:00:00]} Nf6 {[%emt 0:00:38]} 3. c4 {[%emt 0:00:10]} e6 {[%emt 0:00:11]} 4. Nc3 {[%emt 0:00:16]} Bb4 {[%emt 0:02:55]} 5. Qb3 {[%emt 0:00:28]} c5 {[%emt 0:12:29]} 6. dxc5 {[%emt 0:00:21]} Na6 {[%emt 0:00:54]} 7. a3 {[%emt 0:03:19]} Bxc3+ {[%emt 0:04:39]} 8. Qxc3 {[%emt 0:00:09]} Nxc5 {[%emt 0:00:25]} 9. cxd5 {[%emt 0:02:17]} Nce4 {[%emt 0:15:34]} 10. Qd4 {[%emt 0:04:44]} Qxd5 {[%emt 0:19:29]} 11. Qxd5 {[%emt 0:23:13]} Nxd5 {[%emt 0:01:17]} 12. Ne5 {[%emt 0:03:51]} Nc5 {[%emt 0:02:41]} 13. b4 {[%emt 0:07:32]} Nb3 {[%emt 0:01:02]} 14. Rb1 {[%emt 0:00:12]} Nxc1 {[%emt 0:00:49]} 15. Rxc1 {[%emt 0:00:03]} f6 {[%emt 0:10:02]} 16. Nc4 {[%emt 0:05:50]} f5 {[%emt 0:12:27]} 17. g3 {[%emt 0:04:09]} Ke7 {[%emt 0:00:22]} 18. Bg2 {[%emt 0:00:20]} Bd7 {[%emt 0:00:16]} 19. Bxd5 {[%emt 0:07:50]} exd5 {[%emt 0:00:02]} 20. Ne5 {[%emt 0:00:30]} Rhc8 {[%emt 0:01:26]} 21. Kd2 {[%emt 0:00:28]} Kd6 {[%emt 0:00:46]} 22. Nf7+ {[%emt 0:10:16]} Ke7 {[%emt 0:00:03]} 23. Ne5 {[%emt 0:00:49]} Kd6 {[%emt 0:00:05]} 24. Nf7+ {[%emt 0:05:49]} Ke7 {[%emt 0:00:02]} 25. Ng5 {[%emt 0:00:17]} h6 {[%emt 0:07:19]} 26. Nf3 {[%emt 0:00:10]} Kd6 {[%emt 0:01:36]} 27. Rxc8 {[%emt 0:03:07]} Rxc8 {[%emt 0:00:02]} 28. Rc1 {[%emt 0:01:10]} Rf8 {[%emt 0:01:18]} 29. Nd4 {[%emt 0:04:45]} f4 {[%emt 0:00:25]} 30. f3 {[%emt 0:00:27]} fxg3 {[%emt 0:00:47]} 31. hxg3 {[%emt 0:00:05]} h5 {[%emt 0:01:40]} 32. Rh1 {[%emt 0:01:39]} g6 {[%emt 0:00:16]} 33. e3 {[%emt 0:01:32]} Ra8 {[%emt 0:01:13]} 34. f4 {[%emt 0:06:11]} a5 {[%emt 0:00:39]} 35. f5 {[%emt 0:02:22]} Bxf5 {[%emt 0:01:01]} 36. Nxf5+ {[%emt 0:00:17]} gxf5 {[%emt 0:00:03]} 37. Rxh5 {[%emt 0:00:09]} axb4 {[%emt 0:00:15]} 38. axb4 {[%emt 0:00:04]} Rg8 {[%emt 0:00:43]} 1/2-1/2

[Event "ESP-chT Primera Division 2019"]
[Site "Linares"]
[Date "2019.08.31"]
[Round "6.11"]
[White "Llobell Cortell, Enrique"]
[Black "Castellanos Rodriguez, Renier"]
[Result "1/2-1/2"]
[ECO "A45"]
[WhiteElo "2400"]
[BlackElo "2493"]
[Annotator "ChessBase"]
[PlyCount "67"]
[EventDate "2019.08.26"]
[EventType "team-tourn"]
[EventCountry "ESP"]
[SourceTitle "playchess.com"]
[Source "ChessBase"]
[SourceQuality "1"]
[TimeControl "5400+30"]

1. d4 {[%emt 0:00:00]} Nf6 {[%emt 0:00:00]} 2. Bg5 {[%emt 0:00:06]} e6 {[%emt 0:03:18]} 3. e4 {[%emt 0:01:59]} h6 {[%emt 0:00:13]} 4. Bxf6 {[%emt 0:00:06]} Qxf6 {[%emt 0:00:03]} 5. c3 {[%emt 0:02:19]} d6 {[%emt 0:03:09]} 6. Bc4 {[%emt 0:01:13]} g6 {[%emt 0:05:05]} 7. Ne2 {[%emt 0:05:11]} Bg7 {[%emt 0:01:37]} 8. O-O {[%emt 0:00:25]} O-O {[%emt 0:00:45]} 9. f4 {[%emt 0:05:26]} Qe7 {[%emt 0:00:57]} 10. Nd2 {[%emt 0:01:16]} e5 {[%emt 0:23:23]} 11. dxe5 {[%emt 0:35:10]} dxe5 {[%emt 0:00:15]} 12. f5 {[%emt 0:00:23]} Kh7 {[%emt 0:02:16]} 13. Kh1 {[%emt 0:15:58]} Nd7 {[%emt 0:00:56]} 14. Qc2 {[%emt 0:13:07]} Nf6 {[%emt 0:02:08]} 15. h3 {[%emt 0:00:44]} Bd7 {[%emt 0:04:47]} 16. Ng3 {[%emt 0:02:26]} Rad8 {[%emt 0:06:12]} 17. Rad1 {[%emt 0:00:40]} b5 {[%emt 0:14:44]} 18. Bb3 {[%emt 0:00:54]} h5 {[%emt 0:08:22]} 19. Nf3 {[%emt 0:00:55]} Bh6 {[%emt 0:00:07]} 20. c4 {[%emt 0:01:14]} Qc5 {[%emt 0:02:38]} 21. cxb5 {[%emt 0:03:12]} Qxc2 {[%emt 0:00:14]} 22. Bxc2 {[%emt 0:00:03]} Bxb5 {[%emt 0:00:28]} 23. fxg6+ {[%emt 0:01:39]} fxg6 {[%emt 0:00:12]} 24. Rxd8 {[%emt 0:01:00]} Rxd8 {[%emt 0:00:06]} 25. Re1 {[%emt 0:00:25]} Bf4 {[%emt 0:01:52]} 26. Ne2 {[%emt 0:00:04]} Bxe2 {[%emt 0:00:45]} 27. Rxe2 {[%emt 0:00:01]} Kh6 {[%emt 0:00:51]} 28. Kg1 {[%emt 0:05:41]} g5 {[%emt 0:00:14]} 29. Kf2 {[%emt 0:00:57]} g4 {[%emt 0:00:48]} 30. Nh4 {[%emt 0:00:18]} g3+ {[%emt 0:04:57]} 31. Ke1 {[%emt 0:02:04]} Rb8 {[%emt 0:02:05]} 32. b3 {[%emt 0:00:32]} Rd8 {[%emt 0:01:43]} 33. Nf3 {[%emt 0:00:23]} Nh7 {[%emt 0:00:59]} 34. Bb1 {[%emt 0:00:08]} 1/2-1/2

[Event "ESP-chT Primera Division 2019"]
[Site "Linares"]
[Date "2019.08.31"]
[Round "6.12"]
[White "Oliva Castaneda, Kevel"]
[Black "Garcia Martin, Marta"]
[Result "1-0"]
[ECO "D35"]
[WhiteElo "2479"]
[BlackElo "2313"]
[Annotator "ChessBase"]
[PlyCount "81"]
[EventDate "2019.08.26"]
[EventType "team-tourn"]
[EventCountry "ESP"]
[SourceTitle "playchess.com"]
[Source "ChessBase"]
[SourceQuality "1"]
[TimeControl "5400+30"]

1. d4 {[%emt 0:00:00]} d5 {[%emt 0:00:00]} 2. c4 {[%emt 0:00:00]} e6 {[%emt 0:00:00]} 3. Nc3 {[%emt 0:00:00]} Nf6 {[%emt 0:00:15]} 4. cxd5 {[%emt 0:00:26]} exd5 {[%emt 0:00:06]} 5. Bg5 {[%emt 0:00:15]} Be7 {[%emt 0:00:31]} 6. e3 {[%emt 0:00:21]} c6 {[%emt 0:00:38]} 7. Bd3 {[%emt 0:00:18]} Nbd7 {[%emt 0:00:32]} 8. Nge2 {[%emt 0:04:20]} Nf8 {[%emt 0:01:03]} 9. Qc2 {[%emt 0:01:57]} Ne6 {[%emt 0:03:42]} 10. Bh4 {[%emt 0:00:11]} g6 {[%emt 0:03:10]} 11. O-O {[%emt 0:01:06]} O-O {[%emt 0:00:47]} 12. Rad1 {[%emt 0:01:55]} Nh5 {[%emt 0:12:50]} 13. Bxe7 {[%emt 0:00:29]} Qxe7 {[%emt 0:00:05]} 14. f3 {[%emt 0:07:26]} Ng5 {[%emt 0:18:37]} 15. Qd2 {[%emt 0:07:24]} Re8 {[%emt 0:07:19]} 16. f4 {[%emt 0:06:13]} Ne6 {[%emt 0:04:06]} 17. g4 {[%emt 0:07:35]} Nf6 {[%emt 0:00:49]} 18. g5 {[%emt 0:00:07]} Nh5 {[%emt 0:04:09]} 19. Ng3 {[%emt 0:05:07]} Neg7 {[%emt 0:07:25]} 20. Kf2 {[%emt 0:01:57]} Bh3 {[%emt 0:05:57]} 21. Rg1 {[%emt 0:00:19]} Rad8 {[%emt 0:05:11]} 22. Be2 {[%emt 0:02:08]} c5 {[%emt 0:06:29]} 23. Nxh5 {[%emt 0:06:52]} gxh5 {[%emt 0:00:08]} 24. Bf3 {[%emt 0:05:48]} Bg4 {[%emt 0:05:01]} 25. Nxd5 {[%emt 0:07:40]} Rxd5 {[%emt 0:00:04]} 26. Bxd5 {[%emt 0:01:04]} Bxd1 {[%emt 0:01:30]} 27. Rxd1 {[%emt 0:00:04]} cxd4 {[%emt 0:06:06]} 28. e4 {[%emt 0:03:37]} Qd7 {[%emt 0:02:34]} 29. Qd3 {[%emt 0:03:38]} Ne6 {[%emt 0:04:43]} 30. Qf3 {[%emt 0:01:33]} Qc7 {[%emt 0:00:33]} 31. Kg3 {[%emt 0:06:58]} h4+ {[%emt 0:00:38]} 32. Kg4 {[%emt 0:00:04]} Qc2 {[%emt 0:00:28]} 33. h3 {[%emt 0:04:14]} Qxb2 {[%emt 0:00:28]} 34. Kxh4 {[%emt 0:00:24]} Qh2 {[%emt 0:00:33]} 35. Rf1 {[%emt 0:05:32]} Rc8 {[%emt 0:00:28]} 36. f5 {[%emt 0:01:53]} Nf8 {[%emt 0:00:32]} 37. Qh5 {[%emt 0:01:08]} Qc7 {[%emt 0:00:25]} 38. g6 {[%emt 0:02:02]} Qd8+ {[%emt 0:00:28]} 39. Kg4 {[%emt 0:00:24]} Rc3 {[%emt 0:00:37]} 40. Bxf7+ {[%emt 0:00:40]} Kh8 {[%emt 0:00:28]} 41. Qh6 {[%emt 0:00:05]} 1-0

[Event "ESP-chT Primera Division 2019"]
[Site "Linares"]
[Date "2019.08.31"]
[Round "6.13"]
[White "Delorme, Axel"]
[Black "Kokarev, Dmitry"]
[Result "1/2-1/2"]
[ECO "B52"]
[WhiteElo "2489"]
[BlackElo "2598"]
[Annotator "ChessBase"]
[PlyCount "68"]
[EventDate "2019.08.26"]
[EventType "team-tourn"]
[EventCountry "ESP"]
[SourceTitle "playchess.com"]
[Source "ChessBase"]
[SourceQuality "1"]
[TimeControl "5400+30"]

1. e4 {[%emt 0:00:00]} c5 {[%emt 0:00:00]} 2. Nf3 {[%emt 0:00:00]} d6 {[%emt 0:00:00]} 3. Bb5+ {[%emt 0:00:00]} Bd7 {[%emt 0:00:01]} 4. Bxd7+ {[%emt 0:00:00]} Qxd7 {[%emt 0:00:08]} 5. c4 {[%emt 0:00:26]} Nf6 {[%emt 0:00:09]} 6. Nc3 {[%emt 0:00:21]} g6 {[%emt 0:00:08]} 7. d4 {[%emt 0:00:39]} cxd4 {[%emt 0:00:07]} 8. Nxd4 {[%emt 0:00:03]} Bg7 {[%emt 0:00:11]} 9. f3 {[%emt 0:00:24]} Qc7 {[%emt 0:00:28]} 10. b3 {[%emt 0:09:46]} Qa5 {[%emt 0:00:09]} 11. Bd2 {[%emt 0:08:20]} Nc6 {[%emt 0:00:13]} 12. Nce2 {[%emt 0:07:46]} Qb6 {[%emt 0:02:22]} 13. Be3 {[%emt 0:03:04]} Qa5+ {[%emt 0:01:37]} 14. Bd2 {[%emt 0:01:32]} Qc7 {[%emt 0:09:52]} 15. Be3 {[%emt 0:00:59]} Nxd4 {[%emt 0:00:28]} 16. Nxd4 {[%emt 0:01:50]} Qa5+ {[%emt 0:01:28]} 17. Qd2 {[%emt 0:05:35]} Qxd2+ {[%emt 0:00:12]} 18. Kxd2 {[%emt 0:00:05]} a6 {[%emt 0:00:23]} 19. Rac1 {[%emt 0:01:06]} Nd7 {[%emt 0:02:49]} 20. Nc2 {[%emt 0:09:31]} e6 {[%emt 0:01:11]} 21. Nb4 {[%emt 0:00:46]} Ke7 {[%emt 0:04:20]} 22. Nd3 {[%emt 0:00:59]} Rac8 {[%emt 0:00:35]} 23. Bg5+ {[%emt 0:13:52]} f6 {[%emt 0:09:18]} 24. Be3 {[%emt 0:00:35]} f5 {[%emt 0:01:59]} 25. exf5 {[%emt 0:09:00]} gxf5 {[%emt 0:00:20]} 26. g4 {[%emt 0:00:55]} fxg4 {[%emt 0:04:57]} 27. fxg4 {[%emt 0:00:14]} Nf6 {[%emt 0:00:18]} 28. Nf2 {[%emt 0:00:15]} b5 {[%emt 0:02:49]} 29. g5 {[%emt 0:08:53]} Nd7 {[%emt 0:01:25]} 30. Nd3 {[%emt 0:00:03]} bxc4 {[%emt 0:01:55]} 31. bxc4 {[%emt 0:00:08]} Rc6 {[%emt 0:13:29]} 32. Nb4 {[%emt 0:00:26]} Rcc8 {[%emt 0:00:07]} 33. Nd3 {[%emt 0:00:03]} Rc6 {[%emt 0:00:14]} 34. Nb4 {[%emt 0:00:05]} Rcc8 {[%emt 0:00:08]} 1/2-1/2

[Event "ESP-chT Primera Division 2019"]
[Site "Linares"]
[Date "2019.08.31"]
[Round "6.14"]
[White "Volkov, Sergey"]
[Black "Alsina Leal, Daniel"]
[Result "1/2-1/2"]
[ECO "D97"]
[WhiteElo "2547"]
[BlackElo "2477"]
[Annotator "ChessBase"]
[PlyCount "49"]
[EventDate "2019.08.26"]
[EventType "team-tourn"]
[EventCountry "ESP"]
[SourceTitle "playchess.com"]
[Source "ChessBase"]
[SourceQuality "1"]
[TimeControl "5400+30"]

1. d4 {[%emt 0:00:00]} Nf6 {[%emt 0:00:00]} 2. c4 {[%emt 0:00:00]} g6 {[%emt 0:00:00]} 3. Nc3 {[%emt 0:00:00]} d5 {[%emt 0:00:00]} 4. Nf3 {[%emt 0:00:00]} Bg7 {[%emt 0:00:08]} 5. Qb3 {[%emt 0:00:06]} dxc4 {[%emt 0:00:06]} 6. Qxc4 {[%emt 0:00:05]} O-O {[%emt 0:00:11]} 7. e4 {[%emt 0:00:04]} a6 {[%emt 0:00:08]} 8. e5 {[%emt 0:00:09]} b5 {[%emt 0:00:36]} 9. Qb3 {[%emt 0:00:06]} Nfd7 {[%emt 0:00:15]} 10. Be2 {[%emt 0:00:09]} c5 {[%emt 0:00:49]} 11. e6 {[%emt 0:00:09]} cxd4 {[%emt 0:01:08]} 12. exf7+ {[%emt 0:00:44]} Kh8 {[%emt 0:00:27]} 13. Ne4 {[%emt 0:00:58]} Bb7 {[%emt 0:01:24]} 14. Nfg5 {[%emt 0:02:46]} Bxe4 {[%emt 0:07:37]} 15. Nxe4 {[%emt 0:01:40]} Ne5 {[%emt 0:15:54]} 16. Ng5 {[%emt 0:08:57]} d3 {[%emt 0:08:39]} 17. Bf3 {[%emt 0:05:23]} Nxf3+ {[%emt 0:02:51]} 18. Nxf3 {[%emt 0:01:30]} Nc6 {[%emt 0:04:52]} 19. O-O {[%emt 0:01:56]} e5 {[%emt 0:01:14]} 20. Re1 {[%emt 0:21:10]} Na5 {[%emt 0:14:05]} 21. Qe6 {[%emt 0:03:30]} Qc8 {[%emt 0:08:37]} 22. Qe7 {[%emt 0:11:04]} Qd8 {[%emt 0:03:02]} 23. Qe6 {[%emt 0:01:11]} Qc8 {[%emt 0:03:06]} 24. Qe7 {[%emt 0:01:24]} Qd8 {[%emt 0:01:32]} 25. Qe6 {[%emt 0:00:53]} 1/2-1/2

[Event "ESP-chT Primera Division 2019"]
[Site "Linares"]
[Date "2019.08.31"]
[Round "6.15"]
[White "Alonso Moyano, Jonathan"]
[Black "Cuenca Jimenez, Jose Fernando"]
[Result "0-1"]
[ECO "C45"]
[WhiteElo "2358"]
[BlackElo "2515"]
[Annotator "ChessBase"]
[PlyCount "74"]
[EventDate "2019.08.26"]
[EventType "team-tourn"]
[EventCountry "ESP"]
[SourceTitle "playchess.com"]
[Source "ChessBase"]
[SourceQuality "1"]
[TimeControl "5400+30"]

1. e4 {[%emt 0:00:05]} e5 {[%emt 0:00:00]} 2. Nf3 {[%emt 0:00:09]} Nc6 {[%emt 0:00:00]} 3. d4 {[%emt 0:00:17]} exd4 {[%emt 0:00:03]} 4. Nxd4 {[%emt 0:00:07]} Bc5 {[%emt 0:00:33]} 5. Nxc6 {[%emt 0:00:15]} bxc6 {[%emt 0:00:06]} 6. Bd3 {[%emt 0:01:41]} d6 {[%emt 0:00:11]} 7. O-O {[%emt 0:03:49]} Nf6 {[%emt 0:00:08]} 8. h3 {[%emt 0:11:59]} Nd7 {[%emt 0:00:53]} 9. Qe2 {[%emt 0:03:19]} O-O {[%emt 0:11:50]} 10. Be3 {[%emt 0:04:08]} Bb6 {[%emt 0:13:30]} 11. Nc3 {[%emt 0:10:47]} Re8 {[%emt 0:06:55]} 12. Rfe1 {[%emt 0:08:52]} Ne5 {[%emt 0:10:03]} 13. f4 {[%emt 0:09:38]} Nxd3 {[%emt 0:04:16]} 14. cxd3 {[%emt 0:03:24]} d5 {[%emt 0:06:53]} 15. Bxb6 {[%emt 0:03:31]} axb6 {[%emt 0:02:52]} 16. a3 {[%emt 0:05:04]} d4 {[%emt 0:07:17]} 17. Nb1 {[%emt 0:00:48]} Qh4 {[%emt 0:08:13]} 18. Rf1 {[%emt 0:02:08]} f5 {[%emt 0:02:32]} 19. Nd2 {[%emt 0:05:08]} c5 {[%emt 0:00:01]} 20. Kh2 {[%emt 0:05:11]} Bb7 {[%emt 0:01:06]} 21. g3 {[%emt 0:00:25]} Qe7 {[%emt 0:04:31]} 22. e5 {[%emt 0:01:44]} Qe6 {[%emt 0:01:07]} 23. h4 {[%emt 0:02:20]} h6 {[%emt 0:03:10]} 24. Rae1 {[%emt 0:01:18]} Re7 {[%emt 0:02:13]} 25. Nf3 {[%emt 0:03:35]} Rd8 {[%emt 0:02:47]} 26. h5 {[%emt 0:02:43]} c4 {[%emt 0:01:14]} 27. Nh4 {[%emt 0:02:06]} cxd3 {[%emt 0:00:34]} 28. Qxd3 {[%emt 0:01:13]} Be4 {[%emt 0:00:25]} 29. Qd2 {[%emt 0:03:21]} c5 {[%emt 0:05:51]} 30. g4 {[%emt 0:02:04]} c4 {[%emt 0:01:00]} 31. Rg1 {[%emt 0:00:02]} Rc7 {[%emt 0:00:59]} 32. Rg3 {[%emt 0:02:12]} Rdd7 {[%emt 0:02:23]} 33. gxf5 {[%emt 0:00:43]} Bxf5 {[%emt 0:00:59]} 34. Qg2 {[%emt 0:00:12]} Rf7 {[%emt 0:01:40]} 35. Rg1 {[%emt 0:01:18]} c3 {[%emt 0:00:21]} 36. bxc3 {[%emt 0:00:54]} dxc3 {[%emt 0:00:01]} 37. Rc1 {[%emt 0:01:27]} c2 {[%emt 0:00:09]} 0-1

[Event "ESP-chT Primera Division 2019"]
[Site "Linares"]
[Date "2019.08.31"]
[Round "6.18"]
[White "Antunez Munoz, Ines"]
[Black "Garcia-Castany Musellas, Gal.la"]
[Result "1/2-1/2"]
[ECO "C44"]
[WhiteElo "1891"]
[BlackElo "2149"]
[Annotator "NA"]
[PlyCount "96"]
[EventDate "2019.08.26"]
[EventType "team-tourn"]
[EventCountry "ESP"]
[SourceTitle "playchess.com"]
[Source "ChessBase"]
[SourceQuality "1"]
[TimeControl "5400+30"]

1. e4 {[%emt 0:00:00]} e5 {[%emt 0:00:00]} 2. Nf3 {[%emt 0:00:00]} Nc6 {[%emt 0:00:00]} 3. d4 {[%emt 0:00:00]} exd4 {[%emt 0:00:10]} 4. Nxd4 {[%emt 0:00:10]} Nf6 {[%emt 0:00:30]} 5. Nxc6 {[%emt 0:00:18]} bxc6 {[%emt 0:00:07]} 6. Qe2 {[%emt 0:00:14]} Qe7 {[%emt 0:09:03]} 7. Nc3 {[%emt 0:00:46]} Qe6 {[%emt 0:03:52]} 8. Bd2 {[%emt 0:01:06]} Bb4 {[%emt 0:07:02]} 9. e5 {[%emt 0:00:37]} Bxc3 {[%emt 0:07:37]} 10. Bxc3 {[%emt 0:01:13]} Nd5 {[%emt 0:00:06]} 11. Bd2 {[%emt 0:07:49]} a5 {[%emt 0:07:50]} 12. f4 {[%emt 0:13:22]} Nb4 {[%emt 0:10:06]} 13. Bxb4 {[%emt 0:08:48]} axb4 {[%emt 0:00:06]} 14. Qc4 {[%emt 0:00:12]} O-O {[%emt 0:03:15]} 15. Be2 {[%emt 0:11:20]} Qe7 {[%emt 0:09:35]} 16. O-O {[%emt 0:02:10]} Ba6 {[%emt 0:02:50]} 17. Qe4 {[%emt 0:00:09]} Qc5+ {[%emt 0:01:31]} 18. Kh1 {[%emt 0:00:33]} d5 {[%emt 0:01:05]} 19. Qf3 {[%emt 0:06:16]} Qxc2 {[%emt 0:00:19]} 20. Bxa6 Rxa6 {[%emt 0:00:04]} 21. f5 {[%emt 0:04:56]} Qxb2 {[%emt 0:05:57]} 22. f6 {[%emt 0:08:13]} Qxe5 {[%emt 0:01:55]} 23. Qg4 {[%emt 0:01:19]} g6 {[%emt 0:01:09]} 24. Rae1 {[%emt 0:04:23]} Qh5 {[%emt 0:02:48]} 25. Qf4 {[%emt 0:01:19]} h6 {[%emt 0:03:47]} 26. Re5 {[%emt 0:11:03]} g5 {[%emt 0:00:30]} 27. Qxb4 {[%emt 0:00:25]} Rxa2 {[%emt 0:00:53]} 28. Rfe1 {[%emt 0:00:17]} Raa8 {[%emt 0:00:30]} 29. Qc5 {[%emt 0:00:48]} Rab8 {[%emt 0:02:44]} 30. Qa3 {[%emt 0:06:30]} Qg6 {[%emt 0:00:40]} 31. Qe7 d4 {[%emt 0:01:33]} 32. Qd7 {[%emt 0:06:15]} Qxf6 {[%emt 0:01:09]} 33. Qxd4 {[%emt 0:00:33]} Rbe8 {[%emt 0:02:08]} 34. h3 {[%emt 0:01:27]} Kg7 {[%emt 0:02:37]} 35. Qc5 {[%emt 0:01:02]} Rxe5 {[%emt 0:00:39]} 36. Rxe5 {[%emt 0:00:26]} Rd8 {[%emt 0:01:47]} 37. Re1 {[%emt 0:00:35]} Rd5 {[%emt 0:00:15]} 38. Qc4 {[%emt 0:00:11]} Rf5 {[%emt 0:00:43]} 39. Rc1 {[%emt 0:00:42]} c5 {[%emt 0:00:24]} 40. Qb5 {[%emt 0:00:47]} c6 {[%emt 0:02:59]} 41. Qc4 {[%emt 0:00:22]} Rf4 {[%emt 0:01:01]} 42. Qxc5 {[%emt 0:02:29]} Rf1+ {[%emt 0:00:04]} 43. Rxf1 {[%emt 0:00:19]} Qxf1+ {[%emt 0:00:03]} 44. Kh2 {[%emt 0:00:03]} Qf4+ {[%emt 0:00:06]} 45. Kh1 {[%emt 0:00:15]} Qe4 {[%emt 0:00:33]} 46. Qc3+ {[%emt 0:00:25]} f6 {[%emt 0:00:45]} 47. Qc5 {[%emt 0:00:15]} Qe1+ {[%emt 0:00:08]} 48. Kh2 {[%emt 0:00:14]} Qe5+ {[%emt 0:00:04]} 1/2-1/2

[Event "ESP-chT Primera Division 2019"]
[Site "Linares"]
[Date "2019.08.31"]
[Round "6.22"]
[White "Gonzalez Guedes, Iyan"]
[Black "Vaya Gomez, Alejandro"]
[Result "1-0"]
[ECO "B06"]
[WhiteElo "2115"]
[BlackElo "2032"]
[Annotator "NA"]
[PlyCount "63"]
[EventDate "2019.08.26"]
[EventType "team-tourn"]
[EventCountry "ESP"]
[SourceTitle "playchess.com"]
[Source "ChessBase"]
[SourceQuality "1"]
[TimeControl "5400+30"]

1. e4 {[%emt 0:00:00]} g6 2. d4 {[%emt 0:00:03]} Bg7 {[%emt 0:00:00]} 3. Nc3 {[%emt 0:00:13]} d6 {[%emt 0:00:00]} 4. Be3 {[%emt 0:00:20]} a6 {[%emt 0:00:04]} 5. Qd2 {[%emt 0:01:21]} b5 {[%emt 0:00:12]} 6. f3 {[%emt 0:01:18]} Bb7 {[%emt 0:00:26]} 7. h4 {[%emt 0:01:04]} Nd7 {[%emt 0:02:51]} 8. h5 {[%emt 0:06:32]} c5 {[%emt 0:00:40]} 9. g4 {[%emt 0:08:00]} Qc7 {[%emt 0:15:04]} 10. h6 {[%emt 0:16:24]} Bf8 {[%emt 0:11:21]} 11. d5 {[%emt 0:10:15]} O-O-O {[%emt 0:05:38]} 12. g5 {[%emt 0:09:20]} Kb8 {[%emt 0:04:43]} 13. Nh3 {[%emt 0:07:39]} Re8 {[%emt 0:24:08]} 14. O-O-O {[%emt 0:08:49]} e5 {[%emt 0:02:39]} 15. dxe6 {[%emt 0:01:35]} fxe6 {[%emt 0:00:09]} 16. Nf4 {[%emt 0:02:23]} Ne5 {[%emt 0:01:56]} 17. Qf2 {[%emt 0:01:34]} b4 {[%emt 0:03:52]} 18. Nb1 {[%emt 0:02:12]} d5 {[%emt 0:12:10]} 19. exd5 {[%emt 0:03:55]} exd5 {[%emt 0:00:05]} 20. Nxd5 {[%emt 0:00:48]} Qf7 {[%emt 0:00:52]} 21. c4 {[%emt 0:00:40]} Qxf3 {[%emt 0:02:45]} 22. Qxf3 {[%emt 0:02:06]} Nxf3 {[%emt 0:00:07]} 23. Bf4+ {[%emt 0:00:26]} Ka7 {[%emt 0:00:34]} 24. Bg2 {[%emt 0:01:13]} Nd4 {[%emt 0:00:54]} 25. Rhe1 {[%emt 0:00:36]} Ne7 {[%emt 0:08:10]} 26. Bd6 {[%emt 0:02:43]} Nxd5 {[%emt 0:01:31]} 27. Rxe8 {[%emt 0:00:35]} Bxd6 {[%emt 0:00:28]} 28. Rxh8 {[%emt 0:00:42]} Bf4+ {[%emt 0:00:16]} 29. Nd2 {[%emt 0:00:35]} b3 {[%emt 0:01:32]} 30. axb3 {[%emt 0:01:18]} Nxb3+ {[%emt 0:00:51]} 31. Kb1 {[%emt 0:00:35]} Ne3 {[%emt 0:00:47]} 32. Bxb7 {[%emt 0:00:49]} 1-0

[Event "ESP-chT Primera Division 2019"]
[Site "Linares"]
[Date "2019.09.01"]
[Round "7.1"]
[White "Alonso Alvarez, Aitor"]
[Black "Espinosa Aranda, Angel"]
[Result "0-1"]
[ECO "A37"]
[WhiteElo "2305"]
[BlackElo "2497"]
[Annotator "ChessBase"]
[PlyCount "110"]
[EventDate "2019.08.26"]
[EventType "team-tourn"]
[EventCountry "ESP"]
[SourceTitle "playchess.com"]
[Source "ChessBase"]
[SourceQuality "1"]
[TimeControl "5400+30"]

1. Nf3 {[%emt 0:00:00]} c5 {[%emt 0:00:00]} 2. c4 {[%emt 0:00:22]} Nc6 {[%emt 0:00:07]} 3. Nc3 {[%emt 0:03:29]} g6 {[%emt 0:00:10]} 4. g3 {[%emt 0:01:37]} Bg7 {[%emt 0:00:39]} 5. Bg2 {[%emt 0:00:06]} e6 {[%emt 0:00:10]} 6. d3 {[%emt 0:11:30]} Nge7 {[%emt 0:00:18]} 7. Bd2 {[%emt 0:12:32]} b6 {[%emt 0:02:46]} 8. h4 {[%emt 0:03:01]} h5 {[%emt 0:01:34]} 9. a3 {[%emt 0:03:42]} Bb7 {[%emt 0:00:58]} 10. Rb1 {[%emt 0:01:44]} Ne5 {[%emt 0:03:39]} 11. b4 {[%emt 0:07:15]} Bxf3 {[%emt 0:06:18]} 12. Bxf3 {[%emt 0:00:09]} Nxf3+ {[%emt 0:00:07]} 13. exf3 {[%emt 0:00:05]} cxb4 {[%emt 0:05:09]} 14. axb4 {[%emt 0:00:15]} d5 {[%emt 0:00:05]} 15. Qa4+ {[%emt 0:10:32]} Qd7 {[%emt 0:01:02]} 16. O-O {[%emt 0:01:49]} Bxc3 {[%emt 0:11:12]} 17. Qxd7+ {[%emt 0:00:14]} Kxd7 {[%emt 0:00:04]} 18. Bxc3 {[%emt 0:00:07]} Rhc8 {[%emt 0:00:01]} 19. Rfd1 {[%emt 0:14:32]} Ke8 {[%emt 0:09:03]} 20. Bf6 {[%emt 0:03:11]} dxc4 {[%emt 0:00:10]} 21. dxc4 {[%emt 0:01:11]} Rxc4 {[%emt 0:00:05]} 22. Bxe7 {[%emt 0:00:39]} Kxe7 {[%emt 0:00:06]} 23. b5 {[%emt 0:00:52]} Rac8 {[%emt 0:01:29]} 24. Ra1 R8c7 {[%emt 0:01:11]} 25. Ra3 {[%emt 0:05:46]} Rc1 {[%emt 0:02:57]} 26. Rxc1 {[%emt 0:00:12]} Rxc1+ {[%emt 0:00:03]} 27. Kg2 {[%emt 0:00:07]} Rc7 {[%emt 0:00:02]} 28. f4 {[%emt 0:00:20]} Kd7 {[%emt 0:00:14]} 29. Kf3 {[%emt 0:00:40]} Kc8 {[%emt 0:00:35]} 30. Ke4 {[%emt 0:00:17]} f6 {[%emt 0:00:13]} 31. f3 {[%emt 0:01:13]} Kb7 {[%emt 0:00:09]} 32. g4 {[%emt 0:01:30]} Rc4+ {[%emt 0:01:06]} 33. Ke3 {[%emt 0:00:30]} Rb4 {[%emt 0:02:44]} 34. Rd3 {[%emt 0:00:30]} Rxb5 35. Rd6 {[%emt 0:00:18]} Rb3+ {[%emt 0:04:03]} 36. Ke2 {[%emt 0:00:23]} hxg4 {[%emt 0:04:03]} 37. fxg4 {[%emt 0:00:02]} Rg3 {[%emt 0:00:09]} 38. g5 {[%emt 0:01:09]} fxg5 {[%emt 0:00:24]} 39. fxg5 {[%emt 0:00:58]} Rg4 {[%emt 0:00:13]} 40. Rxe6 Rxh4 {[%emt 0:00:02]} 41. Rxg6 {[%emt 0:00:35]} a5 {[%emt 0:00:02]} 42. Kd3 {[%emt 0:04:07]} Rg4 {[%emt 0:00:14]} 43. Rg8 {[%emt 0:00:57]} Ka6 {[%emt 0:00:07]} 44. g6 {[%emt 0:00:27]} b5 {[%emt 0:07:20]} 45. g7 {[%emt 0:00:14]} Kb7 {[%emt 0:00:02]} 46. Kc2 {[%emt 0:00:34]} a4 {[%emt 0:00:08]} 47. Kb2 {[%emt 0:01:03]} Rg3 {[%emt 0:00:05]} 48. Ka2 {[%emt 0:00:42]} Ka7 {[%emt 0:00:46]} 49. Kb2 {[%emt 0:07:04]} b4 {[%emt 0:00:05]} 50. Kc2 {[%emt 0:05:36]} a3 {[%emt 0:01:01]} 51. Rf8 {[%emt 0:00:43]} b3+ {[%emt 0:00:05]} 52. Kd2 {[%emt 0:00:14]} a2 {[%emt 0:01:03]} 53. Rf7+ {[%emt 0:00:50]} Kb6 {[%emt 0:00:12]} 54. Rf6+ {[%emt 0:00:32]} Kb5 {[%emt 0:00:08]} 55. Rf5+ {[%emt 0:00:22]} Kb4 {[%emt 0:00:09]} 0-1